bitfinex/quotes_ETHUSD_20240811
["timestamp","ask_amount","ask_price","bid_price","bid_amount"]
[1723398404074,2.65988,2631.7,2631.5,0.06613896]
[1723398404271,2.65994,2631.7,2631.5,0.06613896]
[1723398404619,2.73599425,2631.7,2631.1,2.66042]
[1723398405053,2.73599425,2631.7,2631.3,0.06614268]
[1723398405254,2.65999,2631.6,2631.3,0.06614268]
[1723398405753,0.07605425,2631.5,2631.3,0.06614268]
[1723398406445,0.07605425,2631.5,2631.0,2.66057]
[1723398406751,0.07605425,2631.5,2631.1,3.0]
[1723398407049,0.07605425,2631.5,2631.2,2.66037]
[1723398407248,2.2917,2631.6,2631.3,2.6602]
[1723398407448,2.2917,2631.9,2631.3,2.6602]
[1723398407647,2.786834,2631.9,2631.3,2.6602]
[1723398407966,2.786834,2631.9,2631.4,2.66017]
[1723398408346,2.786834,2631.9,2631.3,2.6602]
[1723398408347,5.446514,2631.9,2631.3,2.6602]
[1723398408653,5.446514,2631.9,2631.4,2.66012]
[1723398409262,2.65978,2631.8,2631.3,2.6602]
[1723398409468,2.65978,2631.8,2631.1,5.66038]
[1723398409469,2.2728,2631.6,2631.1,5.66038]
[1723398409679,0.07605425,2631.5,2631.1,3.0]
[1723398409872,0.07605425,2631.5,2631.1,2.66048]
[1723398410069,0.07605425,2631.5,2631.1,5.3209]
[1723398410463,2.2728,2631.6,2631.3,2.66018]
[1723398411379,2.2728,2631.9,2631.3,3.192241]
[1723398411581,5.00854425,2631.9,2631.4,2.66011]
[1723398411879,2.2728,2631.9,2631.5,2.66006]
[1723398412797,2.65944,2632.2,2631.7,2.6598]
[1723398412798,2.2728,2632.1,2631.7,2.6598]
[1723398413848,2.2728,2632.1,2631.7,5.31962]
[1723398414048,2.2728,2632.1,2631.7,2.6598]
[1723398414846,2.2728,2632.1,2631.9,2.65966]
[1723398415951,2.2728,2632.1,2631.7,2.6598]
[1723398415952,4.9323,2632.1,2631.5,0.5852301]
[1723398416163,2.2728,2632.1,2631.7,2.65986]
[1723398416776,2.2728,2632.1,2631.7,2.65982]
[1723398417178,0.07605425,2632.0,2631.6,2.65997]
[1723398418291,2.34885425,2632.1,2631.7,2.65984]
[1723398418796,2.2728,2632.4,2632.2,2.65935]
[1723398418995,2.2728,2632.7,2632.2,2.6593]
[1723398419194,2.2728,2632.7,2631.8,2.73574196]
[1723398419195,2.2728,2632.7,2632.3,2.65927]
[1723398419489,2.2728,2633.0,2632.3,3.18276457]
[1723398419657,2.2728,2633.0,2632.3,2.65927]
[1723398420057,2.2728,2633.0,2632.5,2.65906]
[1723398420058,2.65868,2632.9,2632.5,2.65906]
[1723398420289,4.93136,2633.0,2632.5,2.65902]
[1723398420868,4.93136,2633.0,2632.1,2.4997]
[1723398420869,0.07605425,2632.9,2632.1,2.4997]
[1723398421070,2.65877,2632.8,2632.2,0.55]
[1723398421270,2.65877,2632.8,2632.3,2.65921]
[1723398421984,2.65877,2632.8,2632.3,5.31842]
[1723398423198,2.65877,2632.8,2632.3,2.6592]
[1723398423363,2.65877,2632.8,2632.3,5.31841]
[1723398423872,2.65877,2632.8,2632.3,5.31842]
[1723398424112,2.65877,2632.8,2632.4,2.65915]
[1723398424297,2.65877,2632.8,2632.3,2.6592]
[1723398424697,2.65877,2632.8,2632.3,5.31841]
[1723398425342,2.73471425,2632.9,2632.4,2.65915]
[1723398427255,5.424566,2633.0,2632.4,2.65915]
[1723398427256,2.2728,2633.0,2632.5,2.73493926]
[1723398427570,7.21736274,2633.1,2633.0,2.65856]
[1723398427803,7.21736274,2633.1,2632.7,2.4997]
[1723398427804,7.21736274,2633.6,2633.3,2.65818]
[1723398428082,7.21736274,2633.6,2633.4,2.65815]
[1723398428284,7.21736274,2633.6,2633.3,5.31637]
[1723398428472,7.21736274,2633.6,2633.3,2.65818]
[1723398429185,7.21736274,2633.6,2633.3,5.31639]
[1723398429344,7.21736274,2633.6,2633.4,2.65815]
[1723398429987,7.21736274,2633.6,2633.3,2.65818]
[1723398430362,2.73411425,2633.5,2633.1,2.65845]
[1723398430584,2.33315425,2633.5,2633.1,2.65845]
[1723398431297,2.33315425,2633.5,2633.2,2.65835]
[1723398431899,7.21736274,2633.6,2633.2,2.65835]
[1723398433398,4.91497,2633.7,2633.2,2.65835]
[1723398433599,0.07605425,2633.6,2633.2,2.65835]
[1723398434902,0.07605425,2633.6,2633.2,3.19003]
[1723398435377,4.99102425,2633.7,2633.2,3.19003]
[1723398436376,0.07605425,2633.6,2633.2,2.65835]
[1723398438696,4.99102425,2633.7,2633.2,2.65835]
[1723398439496,4.99102425,2633.7,2633.1,2.65845]
[1723398439701,4.99102425,2633.7,2633.0,2.65847]
[1723398439702,0.49910242,2633.6,2633.0,2.65847]
[1723398440003,3.23311667,2633.6,2632.7,5.4997]
[1723398440296,2.73401425,2633.6,2633.1,2.6584]
[1723398440493,2.73401425,2633.6,2633.1,2.6484]
[1723398441890,5.39202425,2633.6,2633.1,2.6484]
[1723398442096,2.65816,2633.4,2632.9,2.65859]
[1723398442291,2.73421425,2633.4,2633.0,3.0]
[1723398442497,2.73422425,2633.4,2633.0,3.0]
[1723398442816,2.2571,2633.3,2632.8,5.31746]
[1723398443021,0.07605425,2633.2,2632.8,2.65871]
[1723398443191,0.07605425,2633.2,2632.9,2.65865]
[1723398444112,0.07605425,2633.3,2633.0,2.65855]
[1723398444281,0.07605425,2633.5,2633.1,2.65845]
[1723398444784,2.73418425,2633.5,2632.9,5.31718]
[1723398444985,3.49911468,2633.5,2632.9,2.65857]
[1723398445184,2.65819,2633.4,2632.9,2.65857]
[1723398445894,6.15726468,2633.5,2632.9,2.65857]
[1723398446101,6.15723468,2633.5,2632.9,5.31717]
[1723398446304,0.84143347,2633.4,2633.0,2.65856]
[1723398446538,0.84143347,2633.4,2632.9,2.65866]
[1723398446685,0.84143347,2633.4,2633.0,2.65854]
[1723398447016,2.73431425,2633.3,2632.9,2.65866]
[1723398447325,2.73416425,2633.5,2632.9,2.65861]
[1723398447613,2.73416425,2633.5,2633.0,2.6585]
[1723398448618,0.07605425,2633.5,2633.1,2.65841]
[1723398448784,0.07605425,2633.5,2633.1,5.31681]
[1723398449434,0.07605425,2633.5,2633.1,2.6584]
[1723398450193,2.73411425,2633.5,2633.1,2.6584]
[1723398453638,2.73411425,2633.5,2632.9,2.65858]
[1723398453639,2.73411425,2633.5,2633.0,2.65855]
[1723398454197,2.6582,2633.4,2632.8,5.31741]
[1723398454491,2.73411425,2633.5,2633.0,2.65856]
[1723398454729,3.49902868,2633.5,2633.0,2.65856]
[1723398455328,6.15713868,2633.5,2633.0,2.65856]
[1723398455534,2.65816,2633.4,2633.0,2.65856]
[1723398456239,0.84096868,2633.5,2632.6,5.3836]
[1723398456240,0.84096868,2633.5,2632.6,8.0425]
[1723398456422,2.65861,2633.0,2632.4,2.6591]
[1723398456636,2.65861,2633.0,2632.6,2.65895]
[1723398456938,2.65861,2633.0,2632.5,5.65906]
[1723398457091,2.65861,2633.0,2632.6,2.65896]
[1723398458040,2.65843,2633.2,2632.6,3.490756]
[1723398458200,2.73448425,2633.2,2632.6,0.831806]
[1723398458400,2.73448425,2633.2,2632.8,2.65875]
[1723398462002,5.39289425,2633.2,2632.6,5.31781]
[1723398462207,2.65861,2633.0,2632.5,2.65905]
[1723398462402,2.65861,2633.0,2632.4,2.65916]
[1723398462403,2.55635425,2632.9,2632.4,2.65916]
[1723398462645,2.65877,2632.8,2632.3,2.65926]
[1723398462856,2.55635425,2632.9,2632.4,8.31827]
[1723398463169,2.55635425,2632.9,2632.4,2.65911]
[1723398463717,5.21504425,2632.9,2632.4,2.65911]
[1723398465550,2.65878,2632.8,2632.4,2.65911]
[1723398466240,2.65878,2632.8,2632.2,3.0]
[1723398466450,2.65891,2632.7,2632.2,5.65932]
[1723398466613,2.65891,2632.7,2632.2,2.65932]
[1723398466815,2.73496425,2632.7,2632.2,2.65932]
[1723398467033,5.13927,2632.6,2632.2,2.65932]
[1723398467350,5.13927,2632.6,2632.1,3.20944]
[1723398467837,5.13927,2632.6,2632.0,2.72561806]
[1723398468042,2.73517425,2632.5,2632.0,2.72561806]
[1723398468239,2.73517425,2632.5,2632.0,5.38512806]
[1723398468548,2.73517425,2632.5,2632.0,2.72561806]
[1723398469735,2.65917,2632.4,2632.0,2.72561806]
[1723398471155,2.65917,2632.4,2632.0,0.06611806]
[1723398471156,2.4577,2632.3,2632.0,0.06611806]
[1723398471337,5.19302425,2632.3,2632.0,3.06611806]
[1723398471647,5.19302425,2632.3,2631.8,2.6597]
[1723398472615,5.19302425,2632.3,2631.6,2.72603885]
[1723398472616,2.73543425,2632.2,2631.7,2.65987]
[1723398473716,2.73543425,2632.2,2631.6,2.72603885]
[1723398473717,3.59940962,2632.2,2631.6,2.72603885]
[1723398474072,2.65967,2631.9,2631.6,0.06612885]
[1723398474351,5.19353425,2631.8,2631.6,0.06612885]
[1723398474855,2.65987,2631.7,2631.6,0.06612885]
[1723398475041,2.65987,2631.7,2631.3,2.66018]
[1723398477118,5.19352425,2631.8,2631.3,2.66018]
[1723398477740,5.11708,2632.2,2631.4,2.56870064]
[1723398477948,5.11708,2632.2,2631.9,2.65967]
[1723398477949,2.4577,2632.2,2631.9,2.65967]
[1723398478331,5.11692,2632.4,2631.9,2.65962]
[1723398478647,2.65928,2632.3,2631.8,2.73575331]
[1723398478823,5.11692,2632.4,2631.9,2.65967]
[1723398479019,5.11692,2632.4,2632.0,2.65956]
[1723398479020,2.4577,2632.4,2632.0,2.65956]
[1723398479729,2.4577,2632.4,2632.1,2.65946]
[1723398480143,2.4577,2632.4,2632.0,2.65956]
[1723398482786,5.11687,2632.4,2631.9,2.6596]
[1723398483169,2.65943,2632.2,2631.7,2.65981]
[1723398483585,0.07605425,2632.3,2631.7,2.65981]
[1723398483876,0.07605425,2632.3,2631.8,2.65976]
[1723398483877,2.73532425,2632.3,2631.8,2.65976]
[1723398484465,5.3186,2632.3,2631.8,2.65976]
[1723398484666,2.73532425,2632.3,2631.8,2.65976]
[1723398486238,0.86126968,2632.3,2631.7,2.65981]
[1723398486481,0.07605425,2632.3,2631.7,2.65981]
[1723398486654,2.65942,2632.2,2631.7,2.65981]
[1723398487387,2.65942,2632.2,2631.8,2.65977]
[1723398488979,2.73532425,2632.3,2631.8,2.65977]
[1723398489396,4.91062,2632.6,2632.1,2.65946]
[1723398489680,4.91062,2632.6,2632.0,2.65957]
[1723398489842,0.07605425,2632.5,2631.9,2.65967]
[1723398490044,2.65919,2632.4,2631.9,2.65967]
[1723398490284,2.32765425,2632.3,2631.7,2.65987]
[1723398490453,2.65942,2632.2,2631.7,2.65987]
[1723398490978,2.73547425,2632.2,2631.7,2.65987]
[1723398491384,2.73547425,2632.2,2631.6,2.65997]
[1723398491385,2.65956,2632.1,2631.6,2.65997]
[1723398491613,2.65956,2632.1,2631.7,3.0]
[1723398491883,2.65942,2632.2,2631.7,6.280867]
[1723398492287,2.73547425,2632.2,2631.7,6.280867]
[1723398492646,2.65942,2632.2,2631.7,6.280867]
[1723398493654,2.32765425,2632.3,2631.7,6.280867]
[1723398493655,2.32765425,2632.3,2631.8,3.5537737]
[1723398493862,2.65937,2632.2,2631.8,3.5537737]
[1723398495413,2.65937,2632.2,2631.8,2.65969]
[1723398495966,2.65953,2632.1,2631.7,3.620997]
[1723398496216,2.65953,2632.1,2631.7,3.0]
[1723398497574,2.73542425,2632.2,2631.7,5.65987]
[1723398498373,5.39487425,2632.2,2631.7,5.65987]
[1723398498775,2.65949,2632.1,2631.7,5.65987]
[1723398499286,2.65937,2632.2,2631.7,5.65979]
[1723398499525,2.73542425,2632.2,2631.7,6.280769]
[1723398500081,2.65937,2632.2,2631.7,8.940589]
[1723398500310,2.65937,2632.2,2631.7,11.281099]
[1723398500721,2.65937,2632.2,2631.8,2.65976]
[1723398501508,4.98692425,2632.3,2631.8,2.65976]
[1723398501705,4.98692425,2632.3,2631.7,8.621269]
[1723398501706,4.98692425,2632.3,2631.9,2.65966]
[1723398505520,4.98692425,2632.3,2631.9,2.65965473]
[1723398505718,2.32765425,2632.3,2631.9,5.31931473]
[1723398505921,2.2516,2632.3,2632.0,2.65956]
[1723398506089,9.46896274,2632.5,2632.1,2.65947]
[1723398506420,7.21736274,2632.8,2632.6,5.3178]
[1723398506654,17.19011,2633.1,2632.7,2.65879]
[1723398506655,2.2516,2633.1,2632.7,2.65879]
[1723398507187,2.2516,2633.1,2632.6,3.79489]
[1723398507687,2.2516,2633.1,2632.6,6.45379]
[1723398507937,4.91006,2633.1,2632.6,6.45379]
[1723398508233,2.2516,2633.1,2632.7,0.07596497]
[1723398508436,2.2516,2633.1,2632.8,2.65876]
[1723398508617,2.2516,2633.1,2632.5,2.3405]
[1723398508618,2.73463425,2633.0,2632.5,2.65906]
[1723398508787,2.2744,2632.7,2632.2,3.79535]
[1723398509146,2.2744,2632.7,2632.2,3.79529]
[1723398509147,5.00933425,2632.7,2632.2,3.79529]
[1723398509939,2.65906,2632.5,2632.0,5.65951]
[1723398510138,2.2744,2632.4,2631.9,2.65967]
[1723398510450,2.2744,2632.4,2632.1,2.65941]
[1723398511789,2.2744,2632.4,2632.0,5.31899]
[1723398512330,2.2744,2632.4,2631.7,3.620979]
[1723398512331,2.2744,2632.4,2631.9,2.65963]
[1723398513036,0.50096042,2632.3,2631.9,2.65963]
[1723398514327,2.2744,2632.4,2631.9,2.65963]
[1723398514489,2.2744,2632.4,2632.0,2.65956]
[1723398519420,2.35045425,2632.4,2632.0,2.65956]
[1723398522339,2.65932,2632.3,2631.7,3.0]
[1723398522541,2.2744,2632.1,2631.7,3.0]
[1723398522729,2.2744,2632.1,2631.8,2.65976]
[1723398523416,2.2744,2632.1,2631.8,2.65972]
[1723398524272,2.65932,2632.3,2631.8,2.65972]
[1723398524273,5.00977425,2632.3,2631.8,2.65972]
[1723398524546,5.00977425,2632.3,2631.8,5.31944]
[1723398530364,5.00977425,2632.3,2631.8,2.65972]
[1723398530560,5.77666568,2632.3,2631.8,5.31944]
[1723398531069,5.00977425,2632.3,2631.8,5.31944]
[1723398531562,2.4418,2632.6,2632.0,2.65951]
[1723398531876,2.4418,2632.6,2632.1,0.265951]
[1723398531877,0.07605425,2632.5,2632.1,0.265951]
[1723398532065,2.73513425,2632.5,2632.0,3.79551]
[1723398532242,2.65927,2632.3,2631.8,3.7957]
[1723398532445,0.07605425,2632.2,2631.8,3.7957]
[1723398533231,0.07605425,2632.2,2631.7,3.0]
[1723398533232,2.4418,2632.1,2631.7,3.0]
[1723398533535,2.4418,2632.1,2631.8,3.79576]
[1723398534626,2.4418,2632.1,2631.8,3.79572]
[1723398534830,2.4418,2632.3,2631.8,3.79572]
[1723398535143,12.31826274,2632.5,2632.0,1.136]
[1723398535451,12.31826274,2632.5,2632.1,2.65946]
[1723398537530,5.1009,2632.5,2632.1,2.65946]
[1723398538861,5.876884,2632.5,2632.1,2.65946]
[1723398539937,0.775984,2632.5,2632.1,2.65939]
[1723398540262,7.21736274,2632.8,2632.5,2.659]
[1723398540466,7.21736274,2632.8,2632.6,2.6589]
[1723398540672,7.21736274,2632.8,2632.5,2.659]
[1723398540673,2.4418,2633.1,2632.7,2.65885]
[1723398541876,2.4418,2633.1,2632.9,2.65865]
[1723398542175,7.21736274,2633.2,2633.1,2.65846]
[1723398542542,2.65786,2633.7,2633.4,2.65816]
[1723398542543,7.21736274,2633.7,2633.4,2.65816]
[1723398542739,5.09943,2634.0,2633.5,2.65805]
[1723398543050,1.23167927,2633.9,2633.6,2.65792]
[1723398543265,7.21736274,2634.1,2633.7,2.65779]
[1723398543842,7.21736274,2634.1,2633.6,2.65793]
[1723398544082,0.72173627,2634.0,2633.6,2.65793]
[1723398544444,0.79779052,2634.0,2633.6,2.65793]
[1723398544744,0.79779052,2634.0,2633.6,5.31583]
[1723398545539,0.79779052,2634.0,2633.6,2.73383593]
[1723398545540,0.72173627,2634.0,2633.6,2.73383593]
[1723398545744,7.21736274,2634.1,2633.8,2.65773]
[1723398546299,7.21736274,2634.5,2633.7,0.07593283]
[1723398546505,7.21736274,2634.5,2634.3,2.65724]
[1723398546786,2.65681,2634.8,2634.3,2.65724]
[1723398546983,9.65916274,2634.9,2634.3,2.65719]
[1723398547486,9.65916274,2634.9,2634.5,2.65704]
[1723398548499,2.4418,2634.9,2634.5,2.65699]
[1723398548798,22.15375274,2635.2,2634.5,2.65699]
[1723398548799,24.53705274,2635.2,2634.5,2.65699]
[1723398548965,4.87187527,2635.1,2634.5,5.31397]
[1723398549164,2.21537527,2635.1,2634.7,2.65681]
[1723398549478,2.21537527,2635.1,2634.8,2.65673]
[1723398549660,7.21736274,2635.2,2634.9,2.65664]
[1723398550000,7.21736274,2635.2,2634.9,5.31316]
[1723398550407,7.21736274,2635.2,2635.0,2.65654]
[1723398551290,7.21736274,2635.2,2635.1,2.65644]
[1723398551497,2.3833,2635.5,2635.1,2.65644]
[1723398551668,4.115218,2635.5,2635.1,2.65644]
[1723398552010,2.65619,2635.4,2634.8,2.65668]
[1723398552297,2.6564,2635.2,2634.6,5.31378]
[1723398552509,0.76080047,2635.3,2634.8,2.65673]
[1723398553964,0.76080047,2635.3,2634.8,2.65669]
[1723398554203,2.3833,2635.5,2634.7,2.35]
[1723398554372,2.65616,2635.4,2634.8,3.28254099]
[1723398554572,2.65616,2635.4,2634.8,2.65665]
[1723398554906,2.65616,2635.4,2634.8,5.31334]
[1723398555397,4.66131143,2635.4,2634.7,5.00683]
[1723398555599,5.38847425,2635.4,2634.6,2.65689]
[1723398555773,2.73224425,2635.4,2634.8,2.65674]
[1723398555974,5.38845425,2635.4,2634.8,2.65674]
[1723398556195,5.38844425,2635.4,2634.8,2.65674]
[1723398556364,2.65631,2635.3,2634.8,2.65674]
[1723398556701,2.65634,2635.2,2634.6,2.65687]
[1723398556897,2.65634,2635.2,2634.7,6.20684]
[1723398557264,6.16565868,2635.4,2634.8,2.65674]
[1723398557600,3.50943868,2635.4,2634.8,5.31348]
[1723398557782,2.3833,2635.5,2634.9,0.55]
[1723398557783,5.03936,2635.5,2634.9,0.55]
[1723398557983,5.03936,2635.5,2635.0,2.65648]
[1723398558297,9.87320274,2635.7,2635.0,2.65648]
[1723398558298,9.87320274,2635.7,2635.2,2.65629]
[1723398558503,7.21736274,2635.7,2635.3,2.65621]
[1723398558663,7.21736274,2635.7,2635.4,2.65607]
[1723398559299,7.21736274,2635.7,2635.5,2.65602]
[1723398559504,7.21736274,2635.7,2635.4,2.65607]
[1723398559710,7.21736274,2635.7,2635.4,2.65605]
[1723398559868,7.21736274,2635.7,2635.2,8.20141536]
[1723398560072,7.21736274,2635.7,2635.3,0.55]
[1723398560293,2.3833,2635.6,2635.2,2.65624]
[1723398560496,2.3833,2635.6,2635.0,2.65648]
[1723398560804,2.3833,2635.6,2635.2,2.65632]
[1723398561004,9.87325274,2635.7,2635.2,5.3126]
[1723398561396,9.87325274,2635.7,2635.2,2.65628]
[1723398562189,9.87325274,2635.7,2635.2,5.31257]
[1723398562505,9.87325274,2635.7,2635.2,2.65628]
[1723398562673,9.87325274,2635.7,2635.1,3.55]
[1723398562870,9.87325274,2635.7,2635.1,7.64443431]
[1723398562871,2.65599,2635.6,2635.1,7.64443431]
[1723398563385,9.87325274,2635.7,2635.2,2.65633]
[1723398564184,2.65589,2635.7,2635.2,2.65633]
[1723398564410,2.65589,2635.7,2635.0,5.05050505]
[1723398564411,2.6563,2635.3,2635.0,5.05050505]
[1723398564609,0.34164325,2635.6,2635.0,5.05050505]
[1723398564916,2.65613,2635.5,2635.0,7.70698505]
[1723398565212,0.07605425,2635.6,2635.1,2.65638]
[1723398565374,2.65604,2635.5,2635.0,5.05050505]
[1723398565570,2.45935425,2635.4,2635.0,5.05050505]
[1723398565885,2.65633,2635.3,2635.0,5.05050505]
[1723398566074,2.3833,2635.6,2635.1,2.65637]
[1723398566603,5.03929,2635.6,2635.0,10.05696505]
[1723398566805,2.3833,2635.6,2635.1,2.65639]
[1723398567020,5.03929,2635.6,2635.0,12.71344505]
[1723398567314,5.03929,2635.6,2635.0,11.32830956]
[1723398567688,5.03929,2635.6,2635.1,2.65643]
[1723398567882,2.3833,2635.6,2635.0,11.32830956]
[1723398568082,2.65589,2635.7,2635.2,2.65632]
[1723398568404,5.31178,2635.7,2635.2,2.65632]
[1723398568609,2.65599,2635.6,2635.1,1.13283096]
[1723398568809,2.65599,2635.6,2635.0,10.05696505]
[1723398568810,2.65599,2635.6,2635.0,12.71345505]
[1723398569129,2.65589,2635.7,2635.2,2.65632]
[1723398569297,17.31899,2635.9,2635.3,2.65622]
[1723398569501,5.03899,2635.9,2635.4,2.65609]
[1723398569699,5.03899,2635.9,2635.5,0.265609]
[1723398569916,5.03899,2635.9,2635.4,2.65609]
[1723398570409,5.11504425,2635.9,2635.4,2.65609]
[1723398570923,5.11504425,2635.9,2635.4,5.01039]
[1723398570924,0.07605425,2635.9,2635.4,5.01039]
[1723398571123,7.21736274,2636.0,2635.5,2.65602]
[1723398571298,2.65564,2635.9,2635.5,0.766641]
[1723398572342,7.21736274,2636.0,2635.5,3.422661]
[1723398572629,7.21736274,2636.0,2635.6,2.65593]
[1723398573297,7.21736274,2636.0,2635.5,3.422671]
[1723398573623,9.87292274,2636.0,2635.5,3.422671]
[1723398573823,9.87292274,2636.0,2635.6,0.8433061]
[1723398574468,7.21736274,2636.0,2635.6,3.4992261]
[1723398575620,7.21736274,2636.0,2635.6,3.4991661]
[1723398575825,7.21736274,2636.0,2635.6,6.1550261]
[1723398576131,2.65544,2636.1,2635.7,0.62309066]
[1723398576289,2.73149425,2636.1,2635.6,2.65586]
[1723398576488,2.65559,2636.0,2635.4,5.01036]
[1723398576695,2.73149425,2636.1,2635.6,2.65592]
[1723398577102,2.73149425,2636.1,2635.5,0.501036]
[1723398577306,2.73149425,2636.1,2635.4,5.01037]
[1723398578548,2.65571,2635.9,2635.2,2.65626]
[1723398578709,2.3107,2635.6,2635.2,2.65626]
[1723398579051,2.3107,2635.6,2635.3,2.65623]
[1723398579464,2.3107,2635.6,2635.1,2.65642]
[1723398579622,2.3107,2635.6,2635.1,5.31274]
[1723398579807,2.3107,2635.6,2635.1,2.65637]
[1723398580143,2.3107,2635.6,2635.2,2.65634]
[1723398580508,4.96664,2635.6,2635.1,2.65644]
[1723398580721,2.65606,2635.5,2635.1,1.30612451]
[1723398580919,2.65606,2635.5,2635.1,3.0]
[1723398581323,2.65619,2635.4,2635.1,3.0]
[1723398581524,2.65614,2635.4,2635.0,5.05050505]
[1723398582707,2.65624,2635.3,2635.0,5.05050505]
[1723398583120,2.73211425,2635.5,2635.0,5.05050505]
[1723398583321,2.3107,2635.6,2635.1,2.65639]
[1723398583503,4.96665,2635.6,2635.1,5.31278]
[1723398583707,4.96665,2635.6,2635.1,2.65639]
[1723398584126,2.65595,2635.6,2635.1,5.31278]
[1723398584343,2.65595,2635.6,2635.1,2.65639]
[1723398584643,2.65611,2635.5,2635.0,5.05050505]
[1723398584804,2.65611,2635.5,2635.0,7.70704505]
[1723398585307,2.65611,2635.5,2635.0,11.13418956]
[1723398585754,2.73192425,2635.7,2635.0,8.47768956]
[1723398585908,2.73192425,2635.7,2635.1,2.65637]
[1723398586108,2.73192425,2635.7,2635.2,2.65631]
[1723398586807,4.96624,2636.0,2635.6,2.65593]
[1723398587033,0.20187165,2636.2,2635.5,2.73190839]
[1723398587315,0.1258174,2636.2,2635.7,2.65578]
[1723398587517,0.1258174,2636.2,2635.8,2.65566]
[1723398588630,0.1258174,2636.2,2636.0,2.65549]
[1723398589342,0.1258174,2636.2,2636.1,2.65543]
[1723398589970,0.1258174,2636.2,2636.1,5.38672526]
[1723398590266,0.1258174,2636.2,2636.1,5.93672526]
[1723398591737,0.1258174,2636.2,2636.1,3.28129526]
[1723398592366,0.1258174,2636.2,2636.1,5.93672526]
[1723398592666,0.1258174,2636.2,2636.1,6.58336224]
[1723398592875,0.1258174,2636.2,2636.1,3.92793224]
[1723398593055,0.1258174,2636.2,2636.1,6.58336224]
[1723398593286,0.1258174,2636.2,2636.1,9.02546224]
[1723398594671,0.1258174,2636.2,2636.1,8.94959698]
[1723398596148,0.1258174,2636.2,2636.1,11.60502698]
[1723398596571,0.1258174,2636.2,2636.1,14.60502698]
[1723398600847,0.1258174,2636.2,2636.1,11.94959698]
[1723398601151,0.1258174,2636.2,2636.1,14.60502698]
[1723398601778,0.1258174,2636.2,2636.1,17.26045698]
[1723398602091,2.3391,2637.2,2637.0,2.65448]
[1723398602584,2.3391,2637.2,2636.8,2.65467]
[1723398602585,2.3391,2637.2,2636.9,2.65456]
[1723398602792,2.3391,2637.2,2636.8,2.65463]
[1723398602996,2.65424,2637.3,2636.8,2.65463]
[1723398603155,2.3391,2637.2,2636.9,2.65455]
[1723398603349,2.3391,2637.2,2636.6,2.65487]
[1723398603554,2.3391,2637.2,2636.7,2.6548]
[1723398603888,2.3391,2637.4,2637.0,2.65446]
[1723398604718,2.3391,2637.4,2637.1,2.65441]
[1723398605023,2.3391,2637.4,2637.2,3.20425]
[1723398605190,2.3391,2637.4,2637.2,3.524675]
[1723398605588,2.3391,2637.4,2637.2,6.178925]
[1723398605894,2.3391,2637.4,2637.2,3.524675]
[1723398606101,4.99196,2638.7,2638.1,2.65332]
[1723398606298,4.99196,2638.7,2637.7,2.6538]
[1723398606299,2.3391,2638.7,2638.2,0.55]
[1723398606731,0.1258174,2638.8,2638.7,2.65282]
[1723398607027,0.1258174,2638.8,2638.7,5.65282]
[1723398607028,0.0599174,2638.8,2638.7,5.65282]
[1723398607187,0.0599174,2638.8,2638.7,8.38142723]
[1723398607386,0.0599174,2638.8,2638.7,11.57864]
[1723398607737,0.015,2639.5,2639.4,5.30422]
[1723398607918,0.015,2639.5,2639.4,3.732532]
[1723398608087,0.015,2639.5,2639.4,8.826742]
[1723398608416,0.07605425,2640.3,2639.8,2.65162]
[1723398608617,2.65138,2640.2,2639.4,9.174612]
[1723398608931,0.07605425,2640.3,2639.7,2.65173]
[1723398609237,0.07605425,2640.3,2639.4,5.9921]
[1723398609405,2.6514,2640.2,2639.5,6.20194]
[1723398609605,2.6514,2640.2,2639.5,3.55]
[1723398609808,0.07605425,2640.1,2639.1,2.65239]
[1723398610119,2.65173,2639.8,2639.2,0.55]
[1723398610322,2.65173,2639.8,2639.0,3.20249]
[1723398610519,2.39365425,2639.7,2639.0,0.55]
[1723398610717,2.39365425,2639.7,2638.9,3.20255]
[1723398610718,0.07605425,2639.6,2638.9,3.20255]
[1723398611021,0.07605425,2639.6,2638.6,2.65284]
[1723398611022,2.65219,2639.4,2638.6,2.65284]
[1723398611337,3.0,2640.2,2639.1,2.65241]
[1723398611489,2.6518,2639.8,2638.7,2.723]
[1723398611697,2.6518,2639.8,2639.1,2.65233]
[1723398611986,2.65192,2639.6,2639.1,2.65233]
[1723398612204,2.65192,2639.6,2638.9,2.65255]
[1723398612415,3.182292,2639.6,2639.0,2.65249]
[1723398612617,3.182292,2639.6,2638.9,2.65255]
[1723398612618,3.182292,2639.6,2639.1,0.55]
[1723398612959,2.65211,2639.4,2639.0,0.55]
[1723398613121,2.65211,2639.4,2638.7,2.65281]
[1723398613122,2.72836425,2639.3,2638.7,2.65281]
[1723398613655,2.72827425,2639.3,2638.7,2.65275]
[1723398614055,0.07605425,2639.3,2638.7,2.65274]
[1723398614265,2.6358292,2639.5,2639.0,2.65244]
[1723398614752,5.2878792,2639.5,2638.9,2.65253]
[1723398614951,2.65219,2639.4,2638.7,2.65276]
[1723398615105,2.65222,2639.3,2638.7,2.65274]
[1723398615312,0.6124616,2639.3,2638.7,2.65274]
[1723398615506,0.53640735,2639.3,2638.9,2.65258]
[1723398615709,2.3176,2639.5,2638.7,2.65278]
[1723398615928,2.72820425,2639.4,2638.7,2.65275]
[1723398616248,0.07605425,2639.4,2638.8,2.65264]
[1723398616549,0.84582168,2639.4,2638.9,2.65253]
[1723398616753,0.84582168,2639.4,2638.8,2.65264]
[1723398617728,0.84582168,2639.4,2638.9,2.65256]
[1723398618543,2.65228,2639.3,2638.6,2.65286]
[1723398618784,3.23382517,2639.3,2638.7,3.55]
[1723398619082,0.58154517,2639.3,2638.7,6.20275]
[1723398619246,3.23377517,2639.3,2638.7,6.20275]
[1723398619445,0.33098294,2639.2,2638.8,2.65271]
[1723398619655,0.58154517,2639.3,2638.9,2.65258]
[1723398619858,0.58154517,2639.3,2638.9,5.30513]